bitfinex-derivatives/quotes_SOLF0:USTF0_20250714
["timestamp","ask_amount","ask_price","bid_price","bid_amount"]
[1752479813172,14.09947954,167.58,167.5,8.93]
[1752479813378,222.34,167.55,167.53,5.9675]
[1752479813581,8.88,167.58,167.56,8.93]
[1752479813782,222.06,167.58,167.56,8.93]
[1752479814078,8.88,167.57,167.56,8.93]
[1752479814379,5.966,167.58,167.57,8.93]
[1752479814570,5.966,167.58,167.57,245.93]
[1752479816679,227.9655,167.59,167.57,237.0]
[1752479816878,230.88,167.59,167.58,8.93]
[1752479817175,8.88,167.59,167.58,8.93]
[1752479817581,5.9654,167.59,167.58,8.93]
[1752479817982,221.32,167.6,167.59,8.93]
[1752479818178,5.01107529,167.63,167.59,8.93]
[1752479818383,5.01107529,167.63,167.61,5.9644]
[1752479818584,5.01107529,167.64,167.63,8.93]
[1752479818782,234.21107529,167.65,167.63,8.93]
[1752479819082,234.21107529,167.65,167.64,8.93]
[1752479819283,240.07437529,167.65,167.64,245.93]
[1752479819482,230.95437529,167.65,167.64,245.93]
[1752479819681,219.98,167.65,167.64,245.93]
[1752479819882,224.97212904,167.65,167.64,245.93]
[1752479820081,228.86,167.65,167.64,245.93]
[1752479820579,234.8233,167.65,167.64,245.93]
[1752479820782,234.8233,167.65,167.64,237.0]
[1752479821279,240.04277954,167.65,167.64,237.0]
[1752479821583,228.18,167.65,167.64,237.0]
[1752479821883,233.17236666,167.65,167.64,237.0]
[1752479822077,239.13566666,167.65,167.64,237.0]
[1752479822279,234.1433,167.65,167.64,237.0]
[1752479823278,239.36277954,167.65,167.64,237.0]
[1752479824583,239.36277954,167.65,167.61,8.93]
[1752479824584,5.9641,167.63,167.61,8.93]
[1752479824778,227.44,167.62,167.61,8.93]
[1752479824979,8.88,167.6,167.59,8.93]
[1752479825180,233.4051,167.6,167.59,8.93]
[1752479829784,218.56,167.6,167.55,9.4]
[1752479830086,9.57,167.58,167.55,9.4]
[1752479830285,234.056,167.58,167.55,9.4]
[1752479830883,234.056,167.58,167.54,242.967]
[1752479830884,228.09,167.58,167.56,9.4]
[1752479831081,228.09,167.58,167.57,9.4]
[1752479831386,228.09,167.58,167.54,237.0]
[1752479831387,228.09,167.58,167.56,9.4]
[1752479831985,5.9664,167.57,167.54,237.0]
[1752479832388,5.9664,167.57,167.55,9.4]
[1752479832989,5.9664,167.57,167.56,9.4]
[1752479833184,15.5364,167.57,167.56,9.4]
[1752479833986,5.9665,167.56,167.54,246.4]
[1752479834191,234.0165,167.56,167.55,9.4]
[1752479834493,228.05,167.56,167.55,9.4]
[1752479834788,5.00512973,167.6,167.58,237.0]
[1752479834789,218.48,167.6,167.58,237.0]
[1752479835086,218.48,167.6,167.59,9.4]
[1752479835287,228.05,167.6,167.59,9.4]
[1752479835590,218.48,167.6,167.59,9.4]
[1752479836782,5.00512973,167.65,167.59,9.4]
[1752479836990,228.01,167.64,167.6,9.4]
[1752479837185,9.57,167.63,167.6,9.4]
[1752479837381,9.57,167.63,167.6,15.3649]
[1752479837684,15.5342,167.63,167.61,9.4]
[1752479837888,15.5342,167.63,167.6,5.9649]
[1752479838086,15.5342,167.63,167.62,9.4]
[1752479840196,233.9542,167.63,167.62,9.4]
[1752479840389,15.5342,167.63,167.62,9.4]
[1752479840588,218.38,167.63,167.62,9.4]
[1752479840993,9.57,167.62,167.6,9.4]
[1752479841293,9.57,167.62,167.61,9.4]
[1752479843189,9.57,167.62,167.6,237.0]
[1752479843396,233.10947954,167.61,167.6,237.0]
[1752479843899,239.07417954,167.61,167.6,237.0]
[1752479846092,244.07930927,167.61,167.6,237.0]
[1752479846793,5.9657,167.59,167.56,9.4]
[1752479847001,227.81,167.58,167.57,9.4]
[1752479848099,233.7758,167.58,167.57,9.4]
[1752479848301,227.81,167.58,167.57,9.4]
[1752479848500,218.24,167.58,167.57,9.4]
[1752479849198,227.81,167.58,167.57,9.4]
[1752479850199,227.81,167.58,167.57,33.48]
[1752479853107,233.7758,167.58,167.57,24.08]
[1752479853305,227.81,167.58,167.57,24.08]
[1752479853903,227.81,167.58,167.57,33.48]
[1752479854599,9.57,167.57,167.49,9.4]
[1752479854804,227.59,167.56,167.52,9.4]
[1752479855200,227.59,167.56,167.54,5.9672]
[1752479855400,218.02,167.56,167.55,9.4]
[1752479855801,218.02,167.56,167.55,15.3668]
[1752479857311,227.75,167.56,167.55,9.4]
[1752479857505,9.73,167.55,167.51,9.75]
[1752479857709,227.67,167.54,167.51,9.75]
[1752479858105,3.13458161,167.53,167.46,9.75]
[1752479858308,9.73,167.55,167.49,9.75]
[1752479858511,223.8873,167.54,167.51,5.9681]
[1752479858714,227.65,167.53,167.49,9.75]
[1752479859106,227.65,167.53,167.48,3.13458161]
[1752479859308,227.65,167.53,167.52,9.75]
[1752479859707,223.8875,167.53,167.5,5.9684]
[1752479860013,9.73,167.52,167.51,9.75]
[1752479862114,9.73,167.52,167.51,33.83]
[1752479862326,9.73,167.52,167.51,39.7983]
[1752479862514,9.73,167.55,167.52,9.75]
[1752479862719,227.51,167.55,167.52,9.75]
[1752479863223,227.51,167.55,167.53,5.9673]
[1752479863419,9.73,167.54,167.51,24.08]
[1752479863620,12.86458161,167.54,167.51,24.08]
[1752479863820,15.6979,167.52,167.51,24.08]
[1752479864023,233.4379,167.52,167.51,24.08]
[1752479864720,233.4379,167.52,167.51,33.83]
[1752479864921,233.4379,167.52,167.51,24.08]
[1752479865122,233.3979,167.52,167.51,24.08]
[1752479865427,227.43,167.52,167.51,33.83]
[1752479865928,233.3979,167.52,167.51,33.83]
[1752479866328,9.73,167.53,167.47,3.13458161]
[1752479866522,9.73,167.5,167.43,12.88458161]
[1752479866726,227.37,167.5,167.44,9.75]
[1752479867428,227.37,167.5,167.47,9.75]
[1752479867628,217.64,167.5,167.48,9.75]
[1752479867933,9.73,167.49,167.48,9.75]
[1752479868521,9.73,167.49,167.39,217.68]
[1752479868522,12.86458161,167.49,167.44,9.75]
[1752479868725,9.73,167.48,167.44,9.75]
[1752479868928,9.73,167.48,167.46,9.75]
[1752479869129,3.13458161,167.49,167.46,9.75]
[1752479869130,9.73,167.47,167.46,9.75]
[1752479869827,9.73,167.47,167.41,237.0]
[1752479870033,9.73,167.46,167.45,9.75]
[1752479871134,9.73,167.46,167.45,15.7204]
[1752479871833,9.73,167.46,167.45,9.75]
[1752479872427,9.73,167.46,167.4,240.13458161]
[1752479872428,9.73,167.46,167.41,9.75]
[1752479872627,9.73,167.46,167.42,9.75]
[1752479872830,9.73,167.45,167.43,5.9708]
[1752479873029,9.73,167.45,167.44,9.75]
[1752479873931,9.73,167.45,167.44,15.7208]
[1752479874125,12.86458161,167.45,167.42,9.75]
[1752479874330,9.73,167.43,167.42,9.75]
[1752479874527,9.73,167.43,167.42,246.75]
[1752479875335,9.73,167.43,167.42,252.7215]
[1752479876133,9.73,167.46,167.43,9.75]
[1752479876531,9.73,167.45,167.44,9.75]
[1752479876836,9.73,167.45,167.44,5.9708]
[1752479877237,220.45954571,167.49,167.48,5.9693]
[1752479877739,217.26,167.51,167.48,246.75]
[1752479877939,217.26,167.52,167.5,5.9684]
[1752479878435,9.73,167.51,167.5,5.9684]
[1752479878635,9.73,167.51,167.5,15.7184]
[1752479878836,217.2,167.55,167.54,5.9672]
[1752479879036,9.73,167.52,167.51,9.75]
[1752479879946,9.73,167.52,167.51,252.7183]
[1752479880237,9.73,167.54,167.52,9.75]
[1752479880437,226.93,167.55,167.52,9.75]
[1752479880638,9.73,167.54,167.53,9.75]
[1752479882544,9.73,167.54,167.53,246.75]
[1752479883043,9.73,167.54,167.53,237.0]
[1752479885241,9.73,167.54,167.53,246.75]
[1752479886745,226.75,167.55,167.53,246.75]
[1752479886940,226.75,167.55,167.54,8.85]
[1752479887745,3.1345492,167.61,167.54,22.2345492]
[1752479887941,216.76,167.59,167.54,13.3845492]
[1752479888247,5.9659,167.58,167.55,8.85]
[1752479888842,5.9659,167.58,167.54,13.3845492]
[1752479889048,5.9659,167.58,167.56,8.85]
[1752479889649,5.9661,167.57,167.56,8.85]
[1752479889947,5.9661,167.57,167.56,19.1]
[1752479891448,15.5161,167.57,167.56,10.25]
[1752479893146,18.6506492,167.57,167.56,10.25]
[1752479894148,15.5161,167.57,167.56,10.25]
[1752479894448,5.00512973,167.63,167.57,8.85]
[1752479894644,521.81,167.64,167.57,8.85]
[1752479894645,225.93,167.62,167.57,8.85]
[1752479894847,5.9649,167.61,167.57,9.1004492]
[1752479895054,225.93,167.62,167.57,9.1004492]
[1752479895055,225.93,167.62,167.58,10.34184305]
[1752479895348,225.93,167.62,167.61,8.85]
[1752479895551,225.93,167.62,167.61,10.34184305]
[1752479895852,5.00512973,167.67,167.61,10.34184305]
[1752479896045,225.79,167.66,167.63,8.85]
[1752479896242,9.55,167.65,167.63,8.85]
[1752479896444,9.55,167.64,167.63,8.85]
[1752479896747,15.5136,167.64,167.63,1.49166307]
[1752479899548,5.9643,167.62,167.61,8.85]
[1752479899747,15.5143,167.62,167.61,20.59166307]
[1752479902250,5.9643,167.62,167.61,20.59166307]
[1752479904953,15.5143,167.62,167.61,20.59166307]
[1752479905257,15.5143,167.62,167.61,19.1]
[1752479905452,15.5143,167.62,167.61,20.59171412]
[1752479906950,15.5143,167.62,167.61,11.74171412]
[1752479907154,15.5143,167.62,167.61,0.8664]
[1752479911552,18.6488492,167.62,167.61,0.8664]
[1752479912352,15.5147,167.61,167.6,8.85]
[1752479912556,9.55,167.61,167.55,5.9668]
[1752479912755,9.55,167.6,167.59,8.85]
[1752479912960,9.55,167.6,167.59,245.85]
[1752479913858,12.6845492,167.6,167.59,245.85]
[1752479914059,18.6496492,167.6,167.59,237.0]
[1752479914259,9.55,167.59,167.55,73.02782115]
[1752479914463,3.1345492,167.56,167.55,8.85]
[1752479914662,9.1010492,167.56,167.55,8.85]
[1752479914857,9.1010492,167.56,167.51,5.968]
[1752479914858,3.1345492,167.56,167.53,8.85]
[1752479915065,12.6845492,167.54,167.53,8.85]
[1752479915356,9.55,167.53,167.48,8.85]
[1752479915562,12.6845492,167.52,167.48,8.85]
[1752479915756,9.55,167.51,167.48,64.17782115]
[1752479916062,9.55,167.51,167.5,8.85]
[1752479916263,3.1345492,167.52,167.5,8.85]
[1752479916459,5.9685,167.51,167.48,64.17782115]
[1752479916660,13.8245492,167.52,167.48,64.17782115]
[1752479917054,13.8245492,167.52,167.49,10.11]
[1752479917255,5.9683,167.51,167.5,10.11]
[1752479917456,10.69,167.54,167.5,10.11]
[1752479917655,10.69,167.53,167.5,10.11]
[1752479917855,10.69,167.53,167.48,64.17782115]
[1752479917856,13.8245492,167.52,167.51,10.11]
[1752479918464,19.7924492,167.52,167.51,10.11]
[1752479918951,10.69,167.5,167.49,10.11]
[1752479919157,13.8245492,167.5,167.48,64.17782115]
[1752479919360,10.69,167.49,167.48,64.17782115]
[1752479919563,13.8245492,167.52,167.49,10.11]
[1752479919868,10.69,167.51,167.5,10.11]
[1752479920154,10.69,167.51,167.48,64.17782115]
[1752479920362,10.69,167.49,167.45,10.11]
[1752479920561,10.69,167.49,167.44,64.17782115]
[1752479920562,16.6597,167.47,167.46,10.11]
[1752479921865,5.9703,167.46,167.45,10.11]
[1752479925865,5.9704,167.45,167.44,74.28782115]
[1752479926074,16.6604,167.45,167.44,74.28782115]
[1752479926466,16.6604,167.45,167.44,64.17782115]
[1752479926873,16.6604,167.45,167.44,74.28782115]
[1752479927275,16.6604,167.45,167.37,64.17782115]
[1752479927276,10.69,167.45,167.37,64.17782115]
[1752479927575,13.8245492,167.42,167.39,10.11]
[1752479927874,16.6621,167.41,167.4,10.11]
[1752479928076,16.6621,167.41,167.4,64.17782115]
[1752479928275,16.6624,167.4,167.39,10.11]
[1752479928670,5.9724,167.4,167.39,10.11]
[1752479930674,10.69,167.42,167.39,10.11]
[1752479930877,13.8245492,167.44,167.39,10.11]
[1752479931078,10.69,167.43,167.39,10.11]
[1752479931579,10.69,167.42,167.39,10.11]
[1752479931778,16.6617,167.42,167.39,10.11]
[1752479931978,19.7962492,167.42,167.39,10.11]
[1752479932178,19.7962492,167.42,167.38,64.17782115]
[1752479932378,19.7962492,167.42,167.4,10.11]
[1752479932574,19.7962492,167.42,167.41,10.11]
[1752479934380,3.1345492,167.42,167.28,515.76]
[1752479934675,10.69,167.39,167.38,10.11]
[1752479936178,16.6625,167.39,167.38,10.11]
[1752479936975,10.69,167.39,167.28,515.76]
[1752479937174,10.69,167.37,167.36,10.11]
[1752479937680,3.1345492,167.38,167.36,10.11]
[1752479937876,16.6635,167.37,167.36,10.11]
[1752479938082,13.8245492,167.37,167.3,237.0]
[1752479938279,3.1345492,167.32,167.31,10.11]
[1752479939483,16.6644,167.34,167.31,10.11]
[1752479939687,3.1345492,167.33,167.32,10.11]
[1752479940688,16.6641,167.35,167.32,10.11]
[1752479940882,10.69,167.37,167.32,10.11]
[1752479941085,19.7981492,167.37,167.33,10.11]
[1752479941381,3.1345492,167.37,167.33,10.11]
[1752479941786,13.8245492,167.39,167.33,247.11]
[1752479941985,13.8245492,167.39,167.34,10.11]
[1752479942184,10.69,167.38,167.34,10.11]
[1752479942485,5.9734,167.37,167.34,10.11]
[1752479942987,10.69,167.36,167.34,10.11]
[1752479943177,5.9742,167.35,167.34,10.11]
[1752479943779,16.6637,167.36,167.35,10.11]
[1752479943984,13.8245492,167.37,167.36,10.11]
[1752479944183,13.8245492,167.37,167.34,10.11]
[1752479944388,9.1078492,167.37,167.34,10.11]
[1752479944581,9.1078492,167.37,167.33,237.0]
[1752479944582,3.1345492,167.37,167.33,237.0]
[1752479944889,16.6636,167.36,167.35,10.11]
[1752479945086,10.69,167.36,167.35,10.11]
[1752479945389,13.8245492,167.37,167.36,10.11]
[1752479945590,19.7980492,167.37,167.36,10.11]
[1752479947087,5.9741,167.35,167.34,9.68]
[1752479947286,19.2886492,167.35,167.34,9.68]
[1752479947687,9.1082492,167.36,167.34,9.68]
[1752479947989,9.1082492,167.36,167.35,9.68]
[1752479947990,19.2882492,167.36,167.35,9.68]
[1752479949786,16.154,167.35,167.34,237.0]
[1752479951793,16.154,167.35,167.34,246.68]
[1752479952184,5.974,167.35,167.34,246.68]
[1752479952393,13.3145492,167.37,167.35,9.68]
[1752479952587,10.18,167.36,167.34,237.0]
[1752479952787,13.3145492,167.35,167.34,246.68]
[1752479952992,9.1085492,167.35,167.34,246.68]
[1752479953192,10.18,167.37,167.34,237.0]
[1752479953393,3.1345492,167.36,167.35,9.68]
[1752479953593,9.1084492,167.36,167.35,9.68]
[1752479954489,5.9739,167.36,167.35,9.68]
[1752479955794,222.74,167.37,167.35,9.68]
[1752479955992,225.8745492,167.37,167.36,9.68]
[1752479956494,231.8480492,167.37,167.36,9.68]
[1752479959787,10.18,167.36,167.33,9.68]
[1752479960898,215.6945492,167.37,167.33,9.68]
[1752479961197,10.18,167.36,167.33,9.68]
[1752479961497,16.1536,167.36,167.33,9.68]
[1752479961798,5.9736,167.36,167.33,9.68]
[1752479962490,10.18,167.39,167.33,9.68]
[1752479962691,13.3145492,167.41,167.33,9.68]
[1752479962997,10.18,167.39,167.35,9.68]
[1752479963597,5.9731,167.38,167.35,9.68]
[1752479964201,5.9733,167.37,167.35,9.68]
[1752479964492,10.18,167.38,167.37,9.68]
[1752479965299,16.1529,167.38,167.37,9.68]
[1752479965598,19.2874492,167.38,167.37,9.68]
[1752479965799,16.1536,167.36,167.35,246.68]
[1752479966098,230.9881492,167.36,167.35,246.68]
[1752479968602,230.9881492,167.36,167.35,9.68]
[1752479970097,227.8536,167.36,167.35,9.68]
[1752479970297,230.9881492,167.36,167.35,9.68]
[1752479972803,220.8081492,167.36,167.35,9.68]
[1752479973505,9.1081492,167.36,167.35,9.68]
[1752479973702,220.1881492,167.36,167.35,9.68]
[1752479974201,230.3681492,167.36,167.35,9.68]
[1752479975008,220.1881492,167.36,167.35,9.68]
[1752479975901,217.0536,167.36,167.35,9.68]
[1752479976602,216.7936,167.36,167.35,9.68]
[1752479977007,226.4336,167.36,167.35,9.68]
[1752479977902,5.9748,167.33,167.32,9.99]
[1752479978105,210.64,167.33,167.32,246.99]
[1752479979409,216.6147,167.33,167.32,246.99]
[1752479980509,216.6147,167.33,167.32,237.0]
[1752479980700,226.3547,167.33,167.32,246.99]
[1752479982710,5.9755,167.31,167.3,9.99]
[1752479982909,216.2755,167.31,167.3,9.99]
[1752479983108,210.3,167.31,167.3,9.99]
[1752479986314,210.3,167.31,167.3,246.99]
[1752479987712,216.2754,167.31,167.3,246.99]
[1752479988013,226.0154,167.31,167.3,246.99]
[1752479988618,220.04,167.31,167.3,246.99]
[1752479988916,210.3,167.31,167.3,246.99]
[1752479990816,15.7151,167.32,167.31,9.99]
[1752479991018,228.5696492,167.32,167.31,9.99]
[1752479991517,5.9754,167.31,167.3,237.0]
[1752479991711,15.7154,167.31,167.3,237.0]
[1752479992311,15.7157,167.3,167.29,9.99]
[1752479992513,225.2357,167.3,167.29,9.99]
[1752479992714,228.3702492,167.3,167.29,9.99]
[1752479994014,15.7161,167.29,167.26,5.977]
[1752479994221,15.7161,167.29,167.26,237.0]
[1752479994222,212.50645135,167.28,167.26,237.0]
[1752479994416,222.24645135,167.28,167.27,9.99]
[1752479995213,4.96498416,167.34,167.27,9.99]
[1752479995214,9.74,167.31,167.27,9.99]
[1752479995414,209.26,167.3,167.28,5.9762]
[1752479995620,209.26,167.3,167.29,9.99]
[1752479996517,219.0,167.3,167.29,9.99]
[1752479997119,224.9757,167.3,167.29,9.99]
[1752479997518,219.0,167.3,167.29,9.99]
[1752479997719,209.26,167.3,167.29,9.99]
[1752479997918,219.0,167.3,167.29,9.99]
[1752479998123,209.26,167.3,167.29,9.99]
[1752479999120,219.0,167.3,167.29,9.99]
[1752479999718,209.26,167.3,167.29,9.99]
[1752480000021,14.70498416,167.34,167.3,9.99]
[1752480000221,9.74,167.37,167.31,9.99]
[1752480000421,208.88,167.36,167.31,9.99]
[1752480001218,526.1,167.38,167.31,9.99]
[1752480001424,208.84,167.37,167.32,9.99]
[1752480001624,208.78,167.36,167.32,9.99]
[1752480001824,208.78,167.36,167.33,5.9744]
[1752480002022,208.78,167.36,167.34,9.99]
[1752480002426,208.78,167.36,167.31,237.0]
[1752480002427,9.74,167.42,167.37,9.99]
[1752480002623,5.0197,167.44,167.37,9.99]
[1752480003224,5.0197,167.43,167.37,9.99]
[1752480003627,208.64,167.42,167.37,9.99]
[1752480004528,208.64,167.42,167.39,9.99]
[1752480004730,5.9722,167.4,167.39,9.99]
[1752480004925,208.64,167.42,167.38,0.04156829]
[1752480005127,5.0197,167.42,167.38,0.04156829]
[1752480005323,208.46,167.41,167.39,9.99]
[1752480005620,208.46,167.41,167.4,9.99]
[1752480005826,521.3997,167.46,167.4,15.9622]
[1752480006026,5.0197,167.51,167.41,9.99]
[1752480006227,208.36,167.5,167.42,9.81]
[1752480006426,208.36,167.5,167.41,237.0]
[1752480006625,213.3797,167.5,167.42,9.81]
[1752480006831,5.9693,167.49,167.42,9.81]
[1752480007128,5.9693,167.49,167.37,208.32]
[1752480007129,208.3,167.49,167.38,9.81]
[1752480007332,208.26,167.52,167.43,9.81]
[1752480007521,208.26,167.52,167.43,246.81]
[1752480007725,208.26,167.52,167.44,9.81]
[1752480008128,208.26,167.52,167.45,9.81]
[1752480008332,208.26,167.52,167.46,15.78]
[1752480008629,208.14,167.55,167.47,9.81]
[1752480009233,5.9679,167.53,167.47,9.81]
[1752480009430,208.14,167.55,167.47,9.81]
[1752480010731,5.9688,167.5,167.47,9.81]
[1752480011832,5.969,167.49,167.47,9.81]
[1752480012236,208.14,167.55,167.47,9.81]
[1752480013429,5.9693,167.48,167.47,9.81]
[1752480013733,5.9693,167.48,167.47,246.81]
[1752480014538,5.9691,167.49,167.47,246.81]
[1752480014731,5.9691,167.49,167.48,9.81]
[1752480016638,5.9693,167.48,167.47,237.0]
[1752480017230,5.9725,167.39,167.38,207.4]
[1752480017429,207.4,167.5,167.38,434.2921]
[1752480017631,207.4,167.5,167.38,226.8921]
[1752480018335,5.9724,167.4,167.38,226.8921]
[1752480018537,207.4,167.5,167.38,226.8921]
[1752480018736,515.92,167.52,167.39,9.81]
[1752480018936,207.22,167.51,167.39,9.81]
[1752480019438,5.9714,167.43,167.39,9.81]
[1752480019739,515.92,167.52,167.4,9.81]
[1752480020039,515.92,167.52,167.41,9.81]
[1752480020334,207.1,167.51,167.41,9.81]
[1752480020540,5.9709,167.44,167.41,9.81]
[1752480020840,207.08,167.5,167.42,9.81]
[1752480021040,207.08,167.5,167.42,236.7021]
[1752480021240,5.9711,167.43,167.42,236.7021]
[1752480023639,207.08,167.5,167.39,9.81]
[1752480023640,5.9722,167.4,167.39,9.81]
[1752480026841,11.938,167.49,167.37,9.81]
[1752480027135,11.938,167.49,167.38,9.81]
[1752480027339,5.9725,167.39,167.38,9.81]
[1752480027539,5.9725,167.39,167.38,236.7021]
[1752480027735,11.938,167.49,167.38,226.8921]
[1752480028041,11.938,167.49,167.39,9.81]
[1752480028441,206.48,167.48,167.39,9.81]
[1752480028641,11.938,167.49,167.39,9.81]
[1752480028941,206.48,167.48,167.39,9.81]
[1752480029138,5.9724,167.4,167.39,9.81]
[1752480029333,5.9724,167.4,167.39,236.7021]
[1752480031842,15.9524,167.4,167.39,226.8921]
[1752480032042,15.9524,167.4,167.39,236.7021]
[1752480032944,15.9524,167.4,167.39,226.8921]
[1752480033842,9.98,167.44,167.35,226.8921]
[1752480034034,9.98,167.44,167.31,9.81]
[1752480034743,9.98,167.44,167.32,9.81]
[1752480034943,9.98,167.44,167.33,9.81]
[1752480035336,5.9735,167.37,167.33,9.81]
[1752480035538,9.98,167.42,167.34,9.81]
[1752480035745,9.98,167.42,167.34,236.7021]
[1752480036644,9.98,167.42,167.35,9.72]
[1752480037044,5.9736,167.36,167.35,9.72]
[1752480037245,5.9736,167.36,167.35,236.6121]
[1752480037647,15.5836,167.36,167.35,236.6121]
[1752480037945,15.585,167.32,167.31,9.72]
[1752480039846,9.61,167.41,167.31,9.72]
[1752480040038,9.61,167.41,167.32,9.72]
[1752480040448,5.9722,167.4,167.33,9.72]
[1752480040642,9.61,167.41,167.33,9.72]
[1752480040844,5.9728,167.39,167.34,9.72]
[1752480041043,15.5828,167.39,167.34,9.72]
[1752480041246,5.9728,167.39,167.34,9.72]
[1752480041546,9.61,167.41,167.33,226.8921]
[1752480041547,5.9729,167.38,167.36,9.72]
[1752480041949,9.61,167.39,167.36,9.72]
[1752480042150,5.9729,167.38,167.36,9.72]
[1752480042450,9.61,167.41,167.36,9.72]
[1752480042751,5.9726,167.39,167.36,9.72]
[1752480043146,5.973,167.38,167.36,9.72]
[1752480045555,5.973,167.38,167.36,226.8921]
[1752480045746,5.973,167.38,167.37,9.72]
[1752480047350,9.61,167.38,167.35,9.72]
[1752480047556,9.61,167.38,167.35,226.8921]
[1752480048255,9.61,167.36,167.31,9.72]
[1752480048454,205.72,167.42,167.31,236.6121]
[1752480048455,9.61,167.41,167.31,236.6121]
[1752480048658,5.975,167.32,167.31,236.6121]
[1752480049056,15.585,167.32,167.31,236.6121]
[1752480052765,9.61,167.35,167.31,226.8921]
[1752480052959,9.61,167.37,167.32,9.72]
[1752480053160,9.61,167.37,167.33,9.72]
[1752480053360,15.5836,167.36,167.35,9.72]
[1752480053756,15.5836,167.36,167.31,232.8674]
[1752480053962,9.61,167.39,167.31,226.8921]
[1752480054268,9.61,167.39,167.31,236.6121]
[1752480054469,5.9747,167.33,167.31,236.6121]
[1752480054769,15.5847,167.33,167.32,9.72]
[1752480055769,5.975,167.32,167.31,226.8921]
[1752480055970,15.585,167.32,167.31,226.8921]
[1752480056169,15.585,167.32,167.31,236.6121]
[1752480057862,9.61,167.39,167.31,236.6121]
[1752480058580,720.86,167.4,167.31,236.6121]
[1752480058964,720.86,167.4,167.32,9.72]
[1752480058965,9.61,167.33,167.32,9.72]
[1752480059564,9.61,167.34,167.32,9.72]
[1752480059770,9.61,167.34,167.31,226.8921]
[1752480059970,15.5837,167.36,167.33,9.72]
[1752480060169,720.86,167.4,167.33,9.72]
[1752480060369,9.61,167.35,167.34,9.72]
[1752480060566,15.5842,167.35,167.34,9.72]
[1752480061170,15.5837,167.36,167.33,226.8921]
[1752480061367,9.61,167.39,167.34,9.72]
[1752480061766,5.974,167.35,167.33,226.8921]
[1752480061962,720.86,167.4,167.33,226.8921]
[1752480062166,9.61,167.39,167.33,226.8921]
[1752480062370,5.9739,167.36,167.35,9.72]
[1752480062573,9.61,167.39,167.33,226.8921]
[1752480062772,14.61414055,167.39,167.33,226.8921]
[1752480062968,15.5843,167.34,167.33,226.8921]
[1752480063168,219.5443,167.34,167.33,226.8921]
[1752480066175,5.9747,167.33,167.32,0.03980542]
[1752480066374,15.1647,167.33,167.32,0.03980542]
[1752480071081,15.1647,167.33,167.32,9.06980542]